bitfinex/quotes_ETHUSD_20250814
["timestamp","ask_amount","ask_price","bid_price","bid_amount"]
[1755156649746,0.002,4747.6,4747.2,5.10650488]
[1755156650106,0.002,4747.6,4747.2,6.35930488]
[1755156650436,3.239,4747.3,4747.2,7.07605305]
[1755156652815,3.229,4747.3,4747.2,7.07605305]
[1755156653715,3.259,4747.4,4747.3,5.10646051]
[1755156654021,3.258,4747.4,4747.3,6.30716051]
[1755156654823,0.022,4747.4,4747.3,6.30716051]
[1755156655046,0.022,4747.4,4747.3,7.235674]
[1755156655417,0.022,4747.4,4747.3,6.034974]
[1755156658619,0.022,4747.4,4747.3,2.10646051]
[1755156660346,0.022,4747.4,4747.3,3.30716051]
[1755156661732,0.022,4747.4,4747.2,2.10649324]
[1755156663450,0.022,4747.4,4747.1,5.10652945]
[1755156663657,0.4619,4747.4,4747.2,2.10650001]
[1755156663859,0.022,4747.4,4746.9,2.10662405]
[1755156664021,1.1816,4747.3,4746.9,2.10662405]
[1755156664226,0.022,4747.4,4746.9,2.10662405]
[1755156664423,0.022,4747.4,4747.0,2.10657937]
[1755156664636,3.235,4747.3,4747.1,0.02106549]
[1755156664950,3.235,4747.3,4746.8,5.26503656]
[1755156665157,3.235,4747.3,4747.1,2.10654407]
[1755156666267,3.235,4747.2,4746.8,4.35907134]
[1755156666450,3.235,4747.2,4747.0,2.10658697]
[1755156666653,3.235,4747.2,4746.9,0.7425]
[1755156666823,3.235,4747.2,4746.2,4.2007]
[1755156667173,3.6749,4747.2,4746.6,2.10676928]
[1755156667458,1.1816,4747.1,4746.2,0.15859643]
[1755156667806,1.1816,4747.0,4746.2,3.0]
[1755156667966,0.7417,4747.0,4746.2,3.0]
[1755156668132,0.4399,4746.9,4746.2,3.0]
[1755156668458,0.4399,4746.9,4746.2,5.10693912]
[1755156669064,0.4399,4746.9,4746.3,2.1069029]
[1755156669860,3.235,4747.2,4746.2,3.0]
[1755156670172,3.235,4747.2,4746.6,2.10675401]
[1755156670526,3.235,4747.2,4746.7,2.1067226]
[1755156671434,3.235,4747.2,4746.5,2.10681554]
[1755156671641,0.4399,4747.1,4746.4,3.0]
[1755156671836,0.4399,4747.1,4746.3,2.84936023]
[1755156671837,0.4399,4747.1,4746.3,2.10690009]
[1755156672941,0.4399,4747.1,4746.2,5.10694019]
[1755156673371,0.4399,4747.1,4746.3,2.10689325]
[1755156673841,0.4399,4747.1,4746.4,2.10684394]
[1755156674848,0.4399,4747.1,4746.2,3.0]
[1755156674849,0.4399,4747.1,4746.5,2.10680977]
[1755156675048,0.4399,4747.1,4746.2,3.0]
[1755156675249,0.4399,4747.1,4746.2,5.10692781]
[1755156675449,0.4399,4747.1,4746.6,2.10677015]
[1755156675972,0.4399,4747.1,4746.5,2.1068126]
[1755156677383,0.4399,4747.1,4746.6,2.10676222]
[1755156677674,0.4399,4747.1,4746.5,2.10680171]
[1755156678041,0.4399,4747.1,4746.3,2.10686911]
[1755156678586,3.234,4747.0,4746.6,2.10676292]
[1755156679451,3.234,4747.0,4746.5,2.10680566]
[1755156679885,3.234,4747.0,4746.6,2.106764]
[1755156681273,3.234,4747.0,4746.5,2.10681524]
[1755156681782,3.234,4747.0,4746.6,2.10676552]
[1755156682365,3.234,4747.0,4746.7,2.10672673]
[1755156683881,3.234,4747.0,4746.8,2.10664114]
[1755156684591,3.234,4747.0,4746.7,2.1067256]
[1755156685287,3.234,4747.0,4746.5,5.1067988]
[1755156685475,0.002,4747.3,4747.0,3.0]
[1755156685687,0.002,4747.3,4747.1,6.29211475]
[1755156685688,3.234,4747.2,4747.1,6.29211475]
[1755156685853,3.234,4747.2,4747.1,6.27104926]
[1755156686053,0.002,4747.3,4747.2,2.10650488]
[1755156686252,3.236,4747.3,4747.2,3.27100488]
[1755156686588,0.002,4747.3,4747.2,8.37213213]
[1755156686788,3.236,4747.3,4747.2,8.37213213]
[1755156687300,0.002,4747.3,4747.2,8.37213213]
[1755156687500,3.236,4747.3,4747.2,8.37213213]
[1755156691229,0.002,4747.3,4747.2,8.37213213]
[1755156694818,0.002,4747.3,4747.2,7.20763213]
[1755156695022,0.002,4747.3,4747.2,5.10650488]
[1755156695329,0.002,4747.3,4747.2,5.26640844]
[1755156699033,0.002,4747.3,4747.2,6.43090844]
[1755156699942,0.002,4747.3,4747.2,5.96630844]
[1755156700103,0.002,4747.3,4747.2,5.26640844]
[1755156700430,0.002,4747.3,4747.2,6.10520776]
[1755156700797,0.002,4747.3,4747.2,5.26640844]
[1755156701101,0.002,4747.3,4747.2,6.43090844]
[1755156703627,0.002,4747.3,4747.2,5.96630844]
[1755156704006,0.002,4747.3,4747.2,6.43090844]
[1755156704212,0.002,4747.3,4747.2,5.26640844]
[1755156706336,0.002,4747.3,4747.2,7.36753569]
[1755156706638,0.002,4747.3,4747.2,8.53203569]
[1755156707140,3.233,4747.3,4747.2,7.36753569]
[1755156708040,3.233,4747.3,4747.2,5.26640844]
[1755156709455,0.002,4747.3,4747.2,5.26640844]
[1755156709743,0.002,4747.3,4747.2,6.43090844]
[1755156712756,0.002,4747.3,4747.2,5.26640844]
[1755156713357,0.4694,4747.3,4747.2,5.26640844]
[1755156713658,1.1986,4747.3,4747.2,5.26640844]
[1755156716546,1.1986,4747.3,4747.2,3.0]
[1755156716745,1.1986,4747.3,4747.1,0.001]
[1755156716957,1.1966,4747.2,4747.1,0.001]
[1755156720762,3.30310488,4747.2,4747.1,0.001]
[1755156723023,6.53210488,4747.2,4747.1,0.001]
[1755156728544,6.54210488,4747.2,4747.1,0.001]
[1755156733994,2.58390488,4747.2,4747.1,0.001]
[1755156734149,5.81290488,4747.2,4747.1,0.001]
[1755156734877,0.01,4747.2,4747.1,1.1197]
[1755156735082,3.239,4747.2,4747.1,1.1197]
[1755156735958,0.01,4747.2,4747.1,1.1197]
[1755156736159,3.238,4747.2,4747.1,1.1197]
[1755156736380,0.01,4747.2,4747.1,1.1197]
[1755156736581,3.238,4747.2,4747.1,1.1197]
[1755156738281,4.4346,4747.2,4747.1,0.001]
[1755156738782,3.238,4747.2,4747.1,0.001]
[1755156740680,0.01,4747.2,4747.1,0.001]
[1755156740879,3.238,4747.2,4747.1,0.001]
[1755156741580,3.6936,4747.2,4747.1,0.001]
[1755156742478,4.4057,4747.2,4747.1,0.001]
[1755156743079,3.238,4747.2,4747.1,0.001]
[1755156744654,3.28420488,4747.2,4747.1,0.001]
[1755156744858,5.79910488,4747.2,4747.1,0.001]
[1755156745656,6.51120488,4747.2,4747.1,0.001]
[1755156746182,5.79910488,4747.2,4747.1,0.001]
[1755156746555,6.51120488,4747.2,4747.1,0.001]
[1755156746888,3.6926,4747.2,4747.1,0.001]
[1755156747061,0.01,4747.2,4747.1,0.001]
[1755156747254,3.237,4747.2,4747.1,0.001]
[1755156757892,5.79910488,4747.2,4747.1,0.001]
[1755156758094,6.51120488,4747.2,4747.1,0.001]
[1755156761297,5.34350488,4747.2,4747.1,0.001]
[1755156762526,6.51120488,4747.2,4747.1,0.001]
[1755156762898,5.34350488,4747.2,4747.1,0.001]
[1755156763331,5.34150488,4747.2,4747.1,0.001]
[1755156767823,5.79710488,4747.2,4747.1,0.001]
[1755156768119,6.50920488,4747.2,4747.1,0.001]
[1755156771526,5.79710488,4747.2,4747.1,0.001]
[1755156772699,5.34150488,4747.2,4747.1,0.001]
[1755156774236,5.78410488,4747.2,4747.1,0.001]
[1755156775607,6.50200488,4747.2,4747.1,0.001]
[1755156778225,5.78410488,4747.2,4747.1,0.001]
[1755156778437,6.50200488,4747.2,4747.1,0.001]
[1755156779740,6.50200488,4747.2,4747.1,1e-08]
[1755156782155,8.71900488,4747.2,4747.1,1e-08]
[1755156782335,6.50200488,4747.2,4747.1,1e-08]
[1755156782537,3.27700488,4747.2,4747.1,1e-08]
[1755156782845,6.50000488,4747.2,4747.1,1e-08]
[1755156783442,19.29776708,4747.2,4747.1,1e-08]
[1755156784850,23.53776708,4747.2,4747.1,1e-08]
[1755156786680,10.74000488,4747.2,4747.1,1e-08]
[1755156787952,10.82428288,4747.2,4747.1,1e-08]
[1755156791257,6.58428288,4747.2,4747.1,1e-08]
[1755156791659,9.35852388,4747.2,4747.1,1e-08]
[1755156792075,9.80644555,4747.2,4747.1,1e-08]
[1755156793517,2.10690432,4746.3,4745.1,0.4291]
[1755156793721,2.1071263,4745.8,4745.1,0.4291]
[1755156793880,5.3291263,4745.8,4745.1,0.4291]
[1755156794082,5.3391263,4745.8,4745.1,0.4291]
[1755156794498,5.3391263,4745.8,4745.0,0.7242]
[1755156794699,6.4996263,4745.8,4745.0,0.7242]
[1755156794927,6.5839233,4745.8,4745.0,0.7242]
[1755156795601,6.5839233,4745.8,4745.7,1e-08]
[1755156795917,2.10770365,4744.5,4743.7,0.4291]
[1755156796124,2.10774808,4744.4,4743.7,0.4291]
[1755156796409,2.11774808,4744.4,4744.3,1e-08]
[1755156796611,2.64466808,4744.4,4744.3,1e-08]
[1755156796809,3.36256808,4744.4,4744.3,1e-08]
[1755156797013,2.10788136,4744.1,4744.0,1e-08]
[1755156797187,5.77248136,4744.1,4744.0,1e-08]
[1755156797383,5.32988136,4744.1,4744.0,1e-08]
[1755156797810,2.10797023,4743.9,4743.8,1e-08]
[1755156798009,5.77257023,4743.9,4743.8,1e-08]
[1755156798216,6.50047023,4743.9,4743.8,1e-08]
[1755156799397,5.78257023,4743.9,4743.8,1e-08]
[1755156799591,6.50047023,4743.9,4743.8,1e-08]
[1755156800320,5.33997023,4743.9,4743.8,0.72320001]
[1755156800531,5.33997023,4743.9,4743.8,1.15230001]
[1755156801183,5.33997023,4743.9,4743.8,1e-08]
[1755156801709,5.33997023,4743.9,4743.8,1.14930001]
[1755156802089,5.34097023,4743.9,4743.8,1.14930001]
[1755156802594,5.34097023,4743.9,4743.8,1e-08]
[1755156803203,6.45527023,4743.9,4743.8,1e-08]
[1755156804110,7.08774023,4743.9,4743.8,1e-08]
[1755156805095,6.43194023,4743.9,4743.8,1e-08]
[1755156805821,7.08774023,4743.9,4743.8,1e-08]
[1755156809039,28.74268223,4743.9,4743.8,1e-08]
[1755156810006,37.08774023,4743.9,4743.8,1e-08]
[1755156810404,35.65333323,4743.9,4743.8,1e-08]
[1755156810740,32.58675223,4743.9,4743.8,1e-08]
[1755156811038,31.54539823,4743.9,4743.8,1e-08]
[1755156811238,28.08310623,4743.9,4743.8,1e-08]
[1755156811940,37.08774023,4743.9,4743.8,1e-08]
[1755156812106,5.97344023,4743.9,4743.8,1e-08]
[1755156812310,11.72722423,4743.9,4743.8,1e-08]
[1755156812506,12.84152423,4743.9,4743.8,1e-08]
[1755156812921,18.82127023,4743.9,4743.8,1e-08]
[1755156813235,15.59827023,4743.9,4743.8,1e-08]
[1755156813409,18.82127023,4743.9,4743.8,1e-08]
[1755156814806,7.08774023,4743.9,4743.8,1e-08]
[1755156815006,6.43194023,4743.9,4743.8,1e-08]
[1755156815208,2.75044023,4743.9,4743.8,1e-08]
[1755156815511,2.75044023,4743.9,4743.8,1.14930001]
[1755156815512,3.86547,4743.9,4743.8,1.14930001]
[1755156816325,3.233,4743.9,4743.8,1.14930001]
[1755156820670,3.232,4743.9,4743.8,1.14930001]
[1755156825570,5.33997023,4743.9,4743.8,1.14930001]
[1755156826245,3.232,4743.9,4743.8,1e-08]
[1755156826641,3.232,4743.9,4743.8,1.14930001]
[1755156829971,5.33997023,4743.9,4743.8,1.14930001]
[1755156830369,5.33997023,4743.9,4743.8,1e-08]
[1755156834276,5.33997023,4743.9,4743.8,1.10940001]
[1755156834577,0.01,4743.9,4743.8,6.32835468]
[1755156834779,5.058,4744.1,4744.0,2.1079258]
[1755156834968,8.279,4744.1,4744.0,18.380188]
[1755156835277,8.279,4744.1,4744.0,19.015088]
[1755156836473,5.058,4744.1,4744.0,19.015088]
[1755156836667,8.279,4744.1,4744.0,21.11621525]
[1755156837479,8.279,4744.1,4744.0,8.31845305]
[1755156837656,5.058,4744.1,4744.0,6.2173258]
[1755156837862,8.279,4744.1,4744.0,6.2173258]
[1755156838063,8.279,4744.1,4744.0,4.1094]
[1755156838251,8.279,4744.1,4744.0,6.2173258]
[1755156838948,8.289,4744.1,4744.0,6.2173258]
[1755156839583,8.289,4744.1,4744.0,4.1094]
[1755156840385,8.289,4744.1,4744.0,6.2173258]
[1755156840764,8.288,4744.1,4744.0,6.2173258]
[1755156840949,8.288,4744.1,4744.0,7.04986288]
[1755156841151,8.288,4744.1,4744.0,19.84762508]
[1755156841546,5.068,4744.1,4744.0,19.84762508]
[1755156841768,8.288,4744.1,4744.0,19.84762508]
[1755156842158,5.068,4744.1,4744.0,19.84762508]
[1755156842359,8.288,4744.1,4744.0,19.84762508]
[1755156843949,5.068,4744.1,4744.0,19.84762508]
[1755156844551,8.288,4744.1,4744.0,19.84762508]
[1755156846482,5.068,4744.1,4744.0,19.84762508]
[1755156846676,8.287,4744.1,4744.0,19.84762508]
[1755156847277,0.01,4744.1,4744.0,19.84762508]
[1755156847477,0.012,4744.9,4744.8,2.10757039]
[1755156847679,0.012,4744.9,4744.8,19.22548963]
[1755156848001,3.231,4744.9,4744.8,19.22548963]
[1755156851972,0.012,4744.9,4744.8,19.22548963]
[1755156852182,3.23,4744.9,4744.8,19.22548963]
[1755156853066,3.23,4744.9,4744.8,3.21075704]
[1755156853261,3.23,4744.9,4744.8,3.0]
[1755156853687,3.23,4744.9,4744.8,5.10757039]
[1755156853889,3.23,4744.9,4744.8,3.0]
[1755156854302,3.23,4744.9,4744.8,6.21697039]
[1755156854668,3.23,4744.9,4744.8,7.8452223]
[1755156856173,0.012,4744.9,4744.8,7.8452223]
[1755156856389,3.23,4744.9,4744.8,7.8452223]
[1755156857262,0.012,4744.9,4744.8,7.8452223]
[1755156857473,3.23,4744.9,4744.8,7.8452223]
[1755156859567,0.012,4744.9,4744.8,7.8452223]
[1755156865400,3.218,4745.5,4744.8,7.8452223]
[1755156865605,3.084,4745.5,4745.4,14.90506611]
[1755156865802,3.084,4745.5,4745.4,17.90506611]
[1755156868196,3.084,4745.5,4745.4,18.01289305]
[1755156868406,3.084,4745.5,4745.4,19.10799305]
[1755156868920,3.084,4745.5,4745.4,18.01289305]
[1755156869123,3.084,4745.5,4745.4,20.02492015]
[1755156869324,0.002,4745.6,4745.5,5.1072595]
[1755156869520,3.219,4745.6,4745.5,5.1072595]
[1755156870419,3.218,4745.6,4745.5,5.1072595]
[1755156872637,0.002,4745.6,4745.5,5.1072595]
[1755156872794,0.002,4745.6,4745.5,7.20838675]
[1755156873198,3.218,4745.6,4745.5,8.30348675]
[1755156873651,0.002,4745.6,4745.5,8.30348675]
[1755156873811,0.002,4745.6,4745.5,7.20838675]
[1755156874127,0.002,4745.6,4745.5,8.30348675]
[1755156877145,0.002,4746.3,4745.7,2.1071707]
[1755156877298,0.002,4746.3,4746.2,17.90471091]
[1755156877623,0.002,4747.3,4747.2,2.10650488]
[1755156877826,0.002,4747.3,4747.2,6.20160488]
[1755156879235,0.002,4748.8,4748.6,2.10588383]
[1755156879433,0.002,4748.8,4748.6,19.41993073]
[1755156879606,0.002,4748.8,4748.6,5.63266853]
[1755156879809,0.002,4748.8,4748.6,18.32483073]
[1755156880207,0.002,4748.8,4748.6,18.4810451]
[1755156880657,0.002,4748.8,4748.6,5.6832829]
[1755156881715,0.002,4748.8,4748.6,3.0]
[1755156881915,1.0895,4748.7,4748.3,2.10599146]
[1755156882117,3.8686,4748.6,4747.3,3.30182725]
[1755156882338,0.4369,4748.5,4748.3,2.10601411]
[1755156882644,1.0875,4748.5,4748.3,2.10601411]
[1755156882836,0.6506,4748.5,4748.3,2.10601411]
[1755156883040,0.4369,4748.4,4748.3,2.10601411]
[1755156883615,1.0875,4748.4,4748.1,2.10607669]
[1755156883815,1.0875,4748.3,4748.1,2.10607669]
[1755156884014,1.0875,4748.2,4747.9,2.10618894]
[1755156884340,0.6506,4748.1,4747.8,2.10623647]
[1755156884640,3.6549,4748.0,4747.8,2.10623647]
[1755156885012,1.0875,4747.9,4747.6,2.10632519]
[1755156885432,1.0875,4747.8,4746.5,28.80236725]
[1755156885644,1.0875,4747.8,4747.3,2.10645944]
[1755156885855,0.002,4748.7,4747.4,2.1064103]
[1755156885856,1.0875,4747.7,4747.4,2.1064103]
[1755156886019,0.4389,4748.7,4747.3,3.0]
[1755156886222,4.3055,4748.6,4747.7,2.10627383]
[1755156886424,0.4369,4748.5,4747.7,2.10627383]
[1755156886620,0.4369,4748.5,4747.3,3.0]
[1755156886822,1.0875,4748.5,4747.7,2.1062724]
[1755156887323,0.4369,4748.4,4747.7,2.1062724]
[1755156888330,0.4369,4748.4,4747.5,2.10633374]
[1755156888537,0.6506,4748.3,4747.5,2.10637177]
[1755156888936,0.4369,4748.2,4747.6,2.10632678]
[1755156889153,0.4369,4748.2,4747.4,2.10637215]
[1755156889549,0.6506,4748.1,4747.4,2.10637215]
[1755156889852,0.4369,4748.0,4747.4,2.10637215]
[1755156890057,3.216,4747.9,4747.4,2.10637215]
[1755156890421,1.0875,4747.8,4747.5,2.10636614]
[1755156890824,3.216,4747.9,4747.6,2.10628502]
[1755156891055,0.002,4748.7,4747.6,2.10628502]
[1755156891258,0.4369,4748.5,4747.7,2.10627264]
[1755156891456,0.4369,4748.5,4747.5,2.10634093]
[1755156891756,0.66,4748.4,4747.4,5.10639771]
[1755156891955,0.66,4748.4,4747.4,5.5756776]
[1755156892252,3.217,4748.3,4747.6,2.10628952]
[1755156892419,3.217,4748.3,4747.7,2.10627828]
[1755156892828,0.4315,4748.2,4747.5,3.0]
[1755156893027,0.4315,4748.2,4747.3,3.0]
[1755156893028,3.217,4748.1,4747.3,3.0]
[1755156893257,3.216,4748.0,4747.7,2.10626685]
[1755156893463,3.216,4747.9,4747.5,2.10637177]
[1755156893790,3.216,4747.9,4747.8,2.10623867]
[1755156894365,0.4315,4748.6,4747.9,2.10618661]
[1755156894565,3.216,4748.5,4747.9,2.10618661]
[1755156894997,3.216,4748.4,4747.9,2.10615075]
[1755156896071,3.6475,4748.4,4747.9,2.10615075]
[1755156897031,0.4315,4748.4,4748.0,2.10613729]
[1755156897310,3.215,4748.3,4748.0,2.10613729]
[1755156897491,3.215,4748.2,4747.9,2.10619424]
[1755156898421,0.4335,4748.7,4748.1,2.10609992]
[1755156898583,3.215,4748.6,4748.0,5.10611873]
[1755156898784,3.215,4748.6,4748.5,2.10592818]
[1755156899209,3.214,4748.6,4748.5,2.10592818]
[1755156899417,3.214,4748.6,4748.4,2.10597123]
[1755156899784,0.4335,4748.7,4748.4,2.10597123]
[1755156900211,3.214,4748.6,4748.2,2.10603076]
[1755156900591,0.4315,4748.5,4747.6,3.0]
[1755156900789,3.874,4748.4,4747.7,2.10112725]
[1755156900992,1.0915,4748.3,4746.2,28.79086725]
[1755156901307,1.0915,4748.3,4746.5,2.10681439]
[1755156901489,1.0915,4748.2,4746.7,2.10669108]
[1755156901690,2.10646043,4747.4,4746.3,2.10688688]
[1755156901891,4.3075,4747.3,4746.1,0.02]
[1755156902100,3.216,4747.2,4746.3,2.10689689]
[1755156902296,4.3075,4747.1,4746.1,0.02]
[1755156902496,3.216,4747.0,4746.5,2.1067821]
[1755156902698,3.216,4747.0,4746.6,2.106765]
[1755156902899,5.4835,4747.7,4746.7,0.02106726]
[1755156903108,3.216,4747.6,4746.4,1.0846]
[1755156903303,3.216,4747.6,4746.8,2.10667427]
[1755156903513,3.216,4747.6,4746.4,3.30190485]
[1755156903514,3.216,4747.6,4746.5,2.10681554]
[1755156903722,5.4835,4747.7,4746.5,5.10681554]
[1755156903935,3.216,4747.5,4746.5,5.10681554]
[1755156904717,3.216,4747.5,4746.8,2.10667156]
[1755156904890,3.6475,4747.5,4746.8,2.10667156]
[1755156905290,3.6475,4747.5,4746.9,2.10663354]
[1755156905489,5.052,4747.7,4747.3,2.10642851]
[1755156905759,5.052,4747.7,4746.9,1.16064379]
[1755156905935,3.217,4747.6,4747.5,5.10637177]
[1755156906119,3.217,4747.6,4747.5,2.10637177]
[1755156906424,4.3085,4747.6,4747.5,2.10637177]
[1755156906622,3.6485,4747.6,4747.5,2.10637177]
[1755156906926,3.217,4747.6,4747.5,2.10637177]
[1755156907416,3.217,4747.6,4747.4,2.10641475]
[1755156907619,1.0915,4747.5,4746.4,0.11146]
[1755156907990,1.0915,4747.4,4746.4,0.001]
[1755156908222,1.0915,4747.3,4746.5,2.10679824]
[1755156908386,0.66,4747.2,4746.5,2.10679824]
[1755156908591,3.6485,4747.1,4746.4,0.001]
[1755156908923,1.0915,4747.0,4746.4,0.001]
[1755156909127,3.217,4747.1,4746.4,0.001]
[1755156909328,1.0915,4746.9,4746.4,0.001]
[1755156909499,3.217,4747.1,4746.4,0.001]
[1755156909700,1.0915,4746.8,4746.4,0.001]
[1755156909901,5.32355661,4747.1,4746.4,0.001]
[1755156910093,1.0915,4746.7,4746.4,0.001]
[1755156910291,3.6485,4746.6,4746.4,0.001]
[1755156910496,3.6485,4746.5,4746.4,0.001]
[1755156911197,3.6485,4746.5,4746.4,2.10785993]
[1755156911891,3.217,4746.5,4746.4,2.10785993]
[1755156913848,3.6485,4746.5,4746.4,0.001]
[1755156914144,3.217,4746.5,4746.4,2.10785993]
[1755156914359,3.217,4746.5,4746.4,0.001]
[1755156914556,3.6485,4746.5,4746.4,0.001]
[1755156914941,3.6485,4746.5,4746.4,2.10785993]
[1755156915258,3.217,4746.5,4746.4,2.10785993]
[1755156919166,0.4315,4747.3,4746.4,2.10785993]
[1755156919167,0.4315,4747.9,4746.7,2.10668805]
[1755156919454,3.215,4747.6,4746.8,3.0]
[1755156919666,3.6465,4747.6,4746.8,3.0]
[1755156919827,3.6465,4747.6,4746.8,5.10667701]
[1755156920023,0.66,4747.8,4747.3,2.10645442]
[1755156920248,3.215,4747.6,4747.4,2.10640789]
[1755156920860,0.4315,4748.0,4747.2,2.10646354]
[1755156921168,2.76606877,4748.2,4747.2,2.10646354]
[1755156921331,3.6824,4747.6,4747.2,2.10646354]
[1755156921536,3.6824,4747.6,4747.3,2.10645675]
[1755156921537,3.215,4747.5,4747.3,2.10645675]
[1755156921857,3.215,4747.5,4747.2,2.10646447]
[1755156922153,3.6824,4747.5,4747.3,2.10645637]
[1755156922337,0.4674,4747.5,4747.3,2.10645637]
[1755156922538,0.4674,4747.5,4747.1,2.10650622]
[1755156922853,4.2919,4747.4,4747.2,2.10649493]
[1755156923023,5.5194,4747.7,4747.3,2.10646051]
[1755156923227,3.6824,4747.6,4747.3,2.10646051]
[1755156923428,3.6824,4747.6,4747.4,2.10640743]
[1755156923953,0.4674,4747.5,4747.4,2.10640743]
[1755156924453,3.215,4747.6,4747.4,2.10640743]
[1755156924654,5.052,4747.7,4747.5,2.10637177]
[1755156924954,3.215,4747.6,4747.5,2.10637177]
[1755156925950,3.215,4747.6,4747.3,2.10641969]
[1755156926136,3.6824,4747.6,4747.3,2.10641969]
[1755156926656,5.052,4747.7,4747.6,2.1063274]
[1755156926822,8.267,4747.7,4747.6,3.1797274]
[1755156927021,8.267,4747.7,4747.6,2.1063274]
[1755156928555,8.7344,4747.7,4747.6,2.1063274]
[1755156928938,8.267,4747.7,4747.6,2.1063274]
[1755156929757,8.7344,4747.7,4747.6,2.1063274]
[1755156930055,8.267,4747.7,4747.6,2.1063274]
[1755156930252,8.7344,4747.7,4747.6,2.1063274]
[1755156931026,8.267,4747.7,4747.6,2.1063274]
[1755156932156,5.052,4747.7,4747.6,2.1063274]
[1755156932334,8.267,4747.7,4747.6,3.94467067]
[1755156932645,5.052,4747.7,4747.6,2.1063274]
[1755156932849,8.267,4747.7,4747.6,2.1063274]
[1755156933757,5.052,4747.7,4747.5,12.79756958]
[1755156933960,8.267,4747.7,4747.6,3.1797274]
[1755156935678,0.002,4748.4,4747.6,1.0734]
[1755156935848,0.002,4748.4,4748.2,2.10606124]
[1755156935849,3.215,4748.3,4748.2,2.10606124]
[1755156936051,3.215,4748.3,4748.2,3.17946124]
[1755156936257,3.215,4748.3,4748.2,6.17946124]
[1755156936641,3.215,4748.3,4748.2,5.10606124]
[1755156937544,0.002,4748.4,4748.3,2.10601689]
[1755156937741,3.217,4748.4,4748.3,3.6442947]
[1755156938294,3.217,4748.4,4748.3,3.17941689]
[1755156938472,3.217,4748.4,4748.3,2.10601689]
[1755156940580,0.002,4748.4,4748.3,2.10601689]
[1755156940783,3.216,4748.4,4748.3,2.10601689]
[1755156941089,3.216,4748.4,4748.3,3.20047705]
[1755156941380,3.216,4748.4,4748.3,6.71007072]
[1755156942295,0.002,4748.4,4748.3,6.71007072]
[1755156942671,3.216,4748.4,4748.3,6.71007072]
[1755156943402,3.216,4748.4,4748.3,5.10601689]
[1755156943579,0.002,4748.4,4748.3,5.10601689]
[1755156943778,3.216,4748.4,4748.3,5.10601689]
[1755156947369,3.6834,4748.4,4748.3,5.10601689]
[1755156947900,4.2929,4748.4,4748.3,5.10601689]
[1755156948398,3.6834,4748.4,4748.3,5.10601689]
[1755156948602,0.002,4748.4,4748.3,5.10601689]
[1755156948898,3.216,4748.4,4748.3,5.10601689]
[1755156949970,0.002,4748.4,4748.3,5.10601689]
[1755156950174,3.216,4748.4,4748.3,6.90062785]
[1755156950901,0.002,4748.4,4748.3,6.90062785]
[1755156951313,3.216,4748.4,4748.3,6.90062785]
[1755156951676,0.002,4748.4,4748.3,6.90062785]
[1755156951912,0.002,4748.7,4748.6,2.10588383]
[1755156952112,0.002,4748.7,4748.6,7.63509925]
[1755156954470,0.002,4748.8,4748.7,5.10583949]
[1755156954705,0.002,4748.9,4748.8,5.10579514]
[1755156955113,0.002,4748.9,4748.8,6.16739514]
[1755156955416,1e-08,4748.9,4748.8,8.26852239]
[1755156958472,0.4611,4751.0,4749.6,2.10542866]
[1755156958684,1e-08,4750.2,4750.0,3.0]
[1755156958884,1e-08,4750.4,4750.3,2.1051302]
[1755156959095,1e-08,4750.7,4750.6,2.10499726]
[1755156959315,5.051,4751.3,4751.2,2.10473143]
[1755156959509,3.213,4751.3,4751.2,5.10473143]
[1755156959709,0.02,4751.4,4751.3,5.10468713]
[1755156960005,3.233,4751.4,4751.3,2.10468713]
[1755156960305,0.02,4751.4,4751.3,2.10468713]
[1755156960509,3.233,4751.4,4751.3,2.10468713]
[1755156960685,3.233,4751.4,4751.0,0.1056]
[1755156960686,4.3344,4751.4,4751.0,0.1056]
[1755156960887,4.3344,4751.4,4751.2,2.10473088]
[1755156960888,1.1014,4751.3,4751.2,2.10473088]
[1755156961309,0.4611,4751.3,4751.2,2.10473088]
[1755156961497,0.02,4751.4,4751.3,5.10468713]
[1755156961808,3.233,4751.4,4751.3,5.10468713]
[1755156962179,1e-08,4751.4,4751.3,6.45123893]
[1755156962377,1e-08,4751.4,4751.3,7.06473893]
[1755156963210,1e-08,4751.4,4751.3,6.61663893]
[1755156963393,1e-08,4751.4,4751.3,5.21028713]
[1755156963911,1e-08,4751.4,4751.3,6.27188713]
[1755156964112,0.02,4752.4,4751.3,6.27188713]
[1755156964113,0.02,4752.4,4751.8,2.10446567]
[1755156964289,0.02,4752.4,4752.3,2.10424426]
[1755156964493,0.02,4752.4,4752.3,5.82334426]
[1755156964702,0.02,4752.4,4752.3,6.27144426]
[1755156965213,0.02,4752.4,4752.3,5.20984426]
[1755156966414,1.1214,4752.4,4752.3,5.10424426]
[1755156966615,1.1214,4752.4,4752.3,3.0]
[1755156967317,0.02,4752.4,4752.3,5.10424426]
[1755156967615,4.3354,4752.4,4752.3,5.10424426]
[1755156967815,4.3354,4752.4,4752.3,3.0]
[1755156968391,4.3354,4752.4,4751.6,2.10453903]
[1755156968392,4.3354,4752.4,4751.4,2.10462837]
[1755156968598,1.1014,4752.3,4750.9,0.1056]
[1755156968811,1.1014,4752.3,4751.6,2.10454032]
[1755156969013,3.234,4752.4,4751.6,2.10454032]
[1755156969014,1.1014,4752.2,4751.6,2.10454032]
[1755156969214,3.234,4752.4,4751.6,2.10454032]
[1755156969387,1.1014,4752.1,4751.7,2.10450103]
[1755156969583,0.02,4752.4,4751.8,2.10446343]